Cogmind - Beta 14 @@@ ROGUE MODE // 2024.10.07 @ 20:46:49 Player: puppuppit Result: Destroyed by DAS Turret with DAS Cannon Performance ------------- Evolutions (1) 500 Regions Visited (5) 1000 Robots Destroyed (197) 985 Value Destroyed (3131) 3131 Prototype IDs (8) 160 Alien Tech Used (0) 0 Bonus (877) 877 TOTAL SCORE: 6653 Bonus ------- High Alert Combat Kills 951 Follower Combat Kills 193 Friendly Fire -267 Cogmind --------- Core Integrity 0/400 Matter 270/300 Energy 36/100 System Corruption 1% Temperature Cool (4) Movement Hovering (152) Ox1 Location -9/Exiles Parts ------- > --- POWER (2) -------- (None) > --- PROPULSION (3) --- Wheel Combat Airjet Combat Airjet > --- UTILITY (2) ------ Medium Storage Unit Sensor Drone Bay (12/20) > --- WEAPON (2) ------- Advanced Beam Cannon Advanced Beam Cannon > --- INVENTORY (10) --- Cooling System Cooling System Advanced Beam Cannon Peak State ------------ > --- POWER ------------ Light Ion Engine Light Nuclear Core > --- PROPULSION ------- Hover Unit Combat Airjet Combat Airjet > --- UTILITY ---------- Medium Storage Unit Sensor Drone Bay > --- WEAPON ----------- Advanced Beam Cannon Advanced Beam Cannon > --- INVENTORY -------- Hover Unit Hover Unit Cooling System Cooling System Targeting Computer Hacking Suite Advanced Beam Cannon Advanced Beam Cannon Advanced Beam Cannon Rocket Launcher [Rating: 32] Favorites ----------- Power Light Ion Engine Engine Light Ion Engine Power Core Light Nuclear Core Propulsion Combat Airjet Wheel Wheel Hover Unit Combat Airjet Utility Medium Storage Unit Device Cooling System Storage Medium Storage Unit Hackware Hacking Suite Weapon Advanced Beam Cannon Energy Gun EM Shotgun Energy Cannon Advanced Beam Cannon Ballistic Gun Assault Rifle Launcher Improved Grenade Launcher Build | -11 -10 -10 -9 -9 -9 ------- Run | Yrd Mat Min Mat Min Exi Slots Evolved 2 | . . . 2 . . Power 1 | . . . 1 . . Propulsion 1 | . . . 1 . . Utility . | . . . . . . Weapon . | . . . . . . Parts Attached 117 | 5 23 16 46 23 4 Power 24 | 1 3 1 15 4 . Engine 20 | 1 2 1 13 3 . Core 4 | . 1 . 2 1 . Reactor . | . . . . . . Propulsion 37 | 2 6 6 12 9 2 Treads . | . . . . . . Leg . | . . . . . . Wheel 23 | 2 6 6 . 9 . Hover 14 | . . . 12 . 2 Flight . | . . . . . . Utility 14 | . 4 3 6 . 1 Device 11 | . 3 3 4 . 1 Storage 2 | . 1 . 1 . . Processor . | . . . . . . Hackware 1 | . . . 1 . . Protection . | . . . . . . Artifact . | . . . . . . Weapon 42 | 2 10 6 13 10 1 Energy Gun 6 | . 5 1 . . . Energy Cannon 20 | . 3 3 7 6 1 Ballistic Gun 3 | 2 1 . . . . Ballistic Cannon . | . . . . . . Launcher 13 | . 1 2 6 4 . Special Weapon . | . . . . . . Impact Weapon . | . . . . . . Slashing Weapon . | . . . . . . Piercing Weapon . | . . . . . . Special Melee Weapon . | . . . . . . Unidentified Prototypes 4 | . 1 1 2 . . Parts Lost 18 | . 1 4 6 2 5 Power 6 | . 1 1 2 . 2 Propulsion 8 | . . 1 4 1 2 Utility 1 | . . 1 . . . Weapon 3 | . . 1 . 1 1 Highest Loss Streak 5 | . 1 2 2 1 5 To Critical Strikes . | . . . . . . Average Slot Usage (%) 97 | . 95 98 96 99 94 Engine 12 | . 6 5 15 20 9 Core 5 | . 6 8 4 1 8 Wheel 16 | . 27 27 . 20 30 Hover 13 | . . . 30 12 . Device 11 | . 12 14 10 11 11 Storage 11 | . 12 14 11 11 11 Energy Gun 6 | . 15 13 . . . Energy Cannon 15 | . 2 14 21 21 22 Ballistic Gun 2 | . 9 . . . . Peak Build Rating 32 | 5 15 21 32 26 26 Average Rating 18 | 4 10 14 24 21 18 On Entrance 13 | . 5 14 15 25 19 Naked Turns . | . . . . . . Heaviest Build 40 | 6 25 36 40 31 32 Greatest Support 42 | 32 32 32 32 42 30 Greatest Overweight (x) 3 | . 1 1 1 1 3 Average Overweight (x) . | . . . . . . Largest Inventory Capacity 10 | 5 10 10 10 10 10 Average Capacity 9 | 5 9 10 10 10 10 Most Carried 10 | 2 10 10 10 10 10 Average Carried 9 | . 8 9 9 9 8 Final Capacity 10 | 5 10 10 10 10 10 Final Carried 10 | 2 10 10 9 10 3 Class Distribution -------------------- 51% | Mutant 48% | Scavenger-Mutant Dominant Class ---------------- Mutant | -10/Materials Mutant | -10/Mines Scavenger-Mutant | -9/Materials Scavenger-Mutant | -9/Mines Scavenger-Mutant | -9/Exiles Resources | -11 -10 -10 -9 -9 -9 ----------- Run | Yrd Mat Min Mat Min Exi Matter Collected 2100 | 167 638 277 698 320 . Remotely 373 | . 373 . . . . Salvage Created 6202 | 95 1638 494 2978 967 30 Parts 430 | 2 125 29 201 60 13 Haulers Intercepted 8 | . 2 . 6 . . Recyclers Shooed 11 | . 4 2 5 . . Parts Field Recycled . | . . . . . . Retrieved Matter . | . . . . . . Parts Self-Destructed . | . . . . . . Prevented . | . . . . . . Kills | -11 -10 -10 -9 -9 -9 ------- Run | Yrd Mat Min Mat Min Exi Combat Hostiles Destroyed 100 | . 17 17 53 13 . Guns 24 | . 14 10 . . . Cannons 34 | . . 2 25 7 . AOE 40 | . 3 5 26 6 . Classes Destroyed 16 | 2 8 2 4 . . Worker 37 | . 16 2 14 5 . Builder 27 | . 10 4 10 3 . Tunneler 15 | 1 3 2 5 4 . Hauler 8 | . 2 . 6 . . Recycler 18 | 1 3 2 6 6 . Mechanic 3 | . 1 . 1 1 . Operator 2 | . 1 . 1 . . Drone 1 | . . 1 . . . Watcher 6 | . 2 . 4 . . Swarmer 22 | . 6 3 6 7 . Grunt 46 | . 11 . 32 3 . Brawler 4 | . . . 3 1 . Duelist 4 | . . . 4 . . Protector 1 | . . . 1 . . Sentry 9 | . . . 7 2 . Assembled 14 | . . 14 . . . Best Kill Streak 17 | 2 13 8 17 17 1 Combat Bots Only 10 | . 6 7 10 6 . Max Kills in Single Turn 4 | 1 2 2 4 3 1 Gunslinging . | . . . . . . Exploded 4 | . 2 2 4 3 . Melee . | . . . . . . Uniques/NPCs Destroyed 1 | . . . . . 1 EX-HEX (-9/Exiles) Combat | -11 -10 -10 -9 -9 -9 -------- Run | Yrd Mat Min Mat Min Exi Hostile Shots Fired 238 | . 45 45 86 23 39 Missed 77 | . 11 21 22 10 13 Damage Taken 2614 | . 340 301 871 178 924 Core 543 | . 34 104 188 . 217 Absorbed by Shields . | . . . . . . Regen/Repaired (Parts) 141 | . 26 . 115 . . Core Remaining (%) 72 | 100 . 44 . . . Volleys Fired 423 | 2 136 61 174 47 3 Largest 2 | 2 2 2 2 2 2 Hottest 136 | 40 136 136 136 136 136 Shots Fired 832 | 4 270 111 345 95 7 Gun 321 | 4 258 59 . . . Cannon 475 | . 10 44 325 89 7 Launcher 36 | . 2 8 20 6 . Special . | . . . . . . Kinetic 151 | 4 147 . . . . Thermal 475 | . 10 44 325 89 7 Explosive 36 | . 2 8 20 6 . Electromagnetic 170 | . 111 59 . . . Robot Hit Streak 13 | 4 13 6 13 12 6 Robot Miss Streak 11 | . 11 6 5 2 2 Penetration Max . | . . . . . . Secondary Targets 4 | . 3 1 . . . Max Gunslinging Chain 1 | . 1 1 . . . Shots Hit Robots 478 | 4 178 67 168 58 3 Core Hits 297 | 4 90 44 126 32 1 Critical Kills 3 | . . 1 1 1 . Critical Parts Destroyed . | . . . . . . Critical Strikes 3 | . . 1 1 1 . Meltdown 3 | . . 1 1 1 . Melee Attacks . | . . . . . . Impact . | . . . . . . Slashing . | . . . . . . Piercing . | . . . . . . Sneak Attacks . | . . . . . . Combat Hostiles . | . . . . . . Follow-up Attacks . | . . . . . . Damage Inflicted 12095 | 41 2450 1336 6443 1743 82 Guns 2535 | 41 2057 437 . . . Cannons 5645 | . 122 493 3734 1214 82 Explosions 3915 | . 271 406 2709 529 . Melee . | . . . . . . Ramming . | . . . . . . Kinetic 1018 | 41 977 . . . . Thermal 5846 | . 294 522 3734 1214 82 Explosive 3559 | . 99 377 2554 529 . Electromagnetic 1672 | . 1080 437 155 . . Impact . | . . . . . . Slashing . | . . . . . . Piercing . | . . . . . . Highest Corruption 3 | . 3 3 1 1 1 Average Corruption 1 | . 2 3 1 1 1 Corruption Purged . | . . . . . . Corruption Blocked . | . . . . . . Effects 34 | . 3 16 7 6 2 Message Errors 9 | . . 5 2 1 1 Matter Fused 8 | . . 6 . 2 . Heat Flow Errors 2 | . . . 1 1 . Energy Discharges 3 | . 1 2 . . . Parts Fused 1 | . . 1 . . . Data Loss (minor) 5 | . 2 1 1 1 . Data Loss (major) 2 | . . . 2 . . Misfires 2 | . . . . 1 1 Alerts 1 | . . 1 . . . Weapon Failures 1 | . . . 1 . . Overload Shots . | . . . . . . Overflow Damage 194 | . . 36 113 44 1 Projectiles 133 | . . 16 74 42 1 Explosions 61 | . . 20 39 2 . Melee . | . . . . . . Knockbacks . | . . . . . . Impact . | . . . . . . Kinetic . | . . . . . . Secondary . | . . . . . . Self-Inflicted Damage 82 | . . . 47 35 . Shots 3 | . . . 2 1 . Rammed . | . . . . . . Targets Rammed . | . . . . . . Kicked . | . . . . . . Crushed . | . . . . . . Highest Temperature 180 | . 75 60 180 118 . Average Temperature 40 | . 21 15 49 22 . Received Heat Transfer 685 | . 138 100 423 24 . Siege Activations . | . . . . . . Robots Corrupted . | . . . . . . Combat Hostiles . | . . . . . . Parts Fried 2 | . 2 . . . . Impact Corruptions . | . . . . . . Robots Melted 4 | . . 1 2 1 . Combat Hostiles 2 | . . . 2 . . Parts Melted 22 | . . 4 14 3 1 Heat Transferred 9777 | . 422 901 6271 2035 148 Parts Sabotaged . | . . . . . . Parts Stolen . | . . . . . . Parts Stripped . | . . . . . . Power Chain Reactions 7 | . 6 1 . . . Alert | -11 -10 -10 -9 -9 -9 ------- Run | Yrd Mat Min Mat Min Exi Peak Influence 1479 | 10 665 208 1479 936 . Initial 576 | . 6 180 1 576 . Average 513 | 5 354 130 700 796 . Maximum Alert Level 4 | . 2 1 4 3 . Low Security (%) 25 | 100 28 80 6 . . Level 1 15 | . 22 19 17 . . Level 2 30 | . 49 . 37 23 . Level 3 19 | . . . 16 76 . Level 4 8 | . . . 22 . . Level 5 . | . . . . . . High Security . | . . . . . . Max Security . | . . . . . . Sterilizations 1 | . . . 1 . . Squads Dispatched 16 | . 3 . 12 1 . Investigation 6 | . 2 . 4 . . Extermination . | . . . . . . Reinforcement 5 | . 1 . 4 . . Assault 5 | . . . 4 1 . Garrison . | . . . . . . Intercept . | . . . . . . Searches Triggered . | . . . . . . Construction Impeded 2 | . . . 2 . . Haulers Reinforced . | . . . . . . Active Scanning Responses . | . . . . . . Cargo Convoy Interrupts . | . . . . . . Stealth | -11 -10 -10 -9 -9 -9 --------- Run | Yrd Mat Min Mat Min Exi Distress Signals 5 | . 2 . 3 . . Communications Jammed . | . . . . . . Distress Signals . | . . . . . . Times Spotted 143 | . 30 21 69 14 9 Peak Tracking Total 11 | . 4 7 8 4 11 Tactical Retreats 6 | . 2 3 . . 1 Traps | -11 -10 -10 -9 -9 -9 ------- Run | Yrd Mat Min Mat Min Exi Traps Triggered 3 | . 3 . . . . Indirectly . | . . . . . . Trap Hack Attempts . | . . . . . . Triggered . | . . . . . . Disarmed . | . . . . . . Reprogrammed . | . . . . . . Reused . | . . . . . . Traps Extracted . | . . . . . . Installed . | . . . . . . Triggered . | . . . . . . Machines | -11 -10 -10 -9 -9 -9 ---------- Run | Yrd Mat Min Mat Min Exi Machines Disabled 10 | . 1 . 8 . 1 Max in Single Turn 1 | . 1 . 1 . 1 Machines Repaired . | . . . . . . Machines Dismantled . | . . . . . . Machines Sabotaged . | . . . . . . Overloaded Fab Kills . | . . . . . . Hacking | -11 -10 -10 -9 -9 -9 --------- Run | Yrd Mat Min Mat Min Exi Machines Accessed 18 | . 6 1 11 . . Terminals 12 | . 5 . 7 . . Fabricators . | . . . . . . Repair Stations 2 | . 1 . 1 . . Recycling Units 1 | . . . 1 . . Scanalyzers 2 | . . . 2 . . Garrison Access . | . . . . . . Total Hacks 70 | . 21 1 48 . . Successful 36 | . 10 1 25 . . Failed 33 | . 10 . 23 . . Catastrophic 6 | . 3 . 3 . . Database Lockouts 1 | . 1 . . . . Manual 29 | . 17 . 12 . . Terminals 48 | . 19 . 29 . . Fabricators . | . . . . . . Repair Stations 7 | . 2 . 5 . . Recycling Units 3 | . . . 3 . . Scanalyzers 11 | . . . 11 . . Garrison Access . | . . . . . . Terminal Hacks 20 | . 8 1 11 . . Record 1 | . . . 1 . . Robot Schematic 1 | . . . 1 . . Robot Analysis 13 | . 7 . 6 . . Prototype ID Bank 2 | . . . 2 . . Open Door 1 | . . 1 . . . Branch Access Points 1 | . 1 . . . . Recall Investigation 1 | . . . 1 . . Fabricator Hacks . | . . . . . . Repair Station Hacks 6 | . 2 . 4 . . Scan Component 3 | . 1 . 2 . . Repair 3 | . 1 . 2 . . Recycling Unit Hacks . | . . . . . . Scanalyzer 10 | . . . 10 . . Insert Component 5 | . . . 5 . . Analyze 5 | . . . 5 . . Garrison Access Hacks . | . . . . . . Unauthorized Hacks . | . . . . . . Terminals . | . . . . . . Fabricators . | . . . . . . Repair Stations . | . . . . . . Recycling Units . | . . . . . . Scanalyzers . | . . . . . . Garrison Access . | . . . . . . Data Cores Recovered . | . . . . . . Used . | . . . . . . Hacking Detections 17 | . 6 . 11 . . Full Trace Events 9 | . 5 . 4 . . Feedback Events 1 | . . . 1 . . Corruption 1 | . . . 1 . . Feedback Blocked . | . . . . . . Robot Schematics Acquired 1 | . . . 1 . . Robots Built . | . . . . . . Authchips . | . . . . . . Time . | . . . . . . Total Robot Build Rating . | . . . . . . Part Schematics Acquired 5 | . . . 5 . . Parts Built . | . . . . . . Authchips . | . . . . . . Time . | . . . . . . Total Part Build Rating . | . . . . . . Parts Repaired 3 | . 1 . 2 . . Time 126 | . 26 . 100 . . Parts Recycled . | . . . . . . Recycled Matter . | . . . . . . Retrieved Matter . | . . . . . . Retrieved Components . | . . . . . . Parts Scanalyzed 5 | . . . 5 . . Part Schematics Acquired 5 | . . . 5 . . Parts Damaged 1 | . . . 1 . . Bothacking | -11 -10 -10 -9 -9 -9 ------------ Run | Yrd Mat Min Mat Min Exi Used RIF Installer . | . . . . . . Robots Hacked . | . . . . . . Non-combat . | . . . . . . Combat . | . . . . . . Robot Hacks Applied . | . . . . . . Relay Couplers Released . | . . . . . . Fabnet Peak Effective % . | . . . . . . Robots Rewired . | . . . . . . Allies Hacked . | . . . . . . Hacks Repelled . | . . . . . . Allies | -11 -10 -10 -9 -9 -9 -------- Run | Yrd Mat Min Mat Min Exi Total Allies 6 | . . 3 . 3 . Largest Group 3 | . . 3 3 2 2 Highest-Rated Group 47 | . . 40 40 47 47 Highest-Rated Ally 31 | . . 16 16 31 31 Total Orders 5 | . . 1 4 . . EXPLORE 5 | . . 1 4 . . Ally Attacks 48 | . . . 37 11 . Total Damage 508 | . . . 361 147 . Kills 8 | . . . 6 2 . Allies Corrupted . | . . . . . . Allies Melted . | . . . . . . Intel | -11 -10 -10 -9 -9 -9 ------- Run | Yrd Mat Min Mat Min Exi Robot Analysis Total 13 | . 7 . 6 . . Derelict Logs Recovered 2 | . . 1 . 1 . Drone Launches 25 | . . 2 19 . 4 Drone Recoveries 17 | . . 1 15 . 1 Exploration | -11 -10 -10 -9 -9 -9 ------------- Run | Yrd Mat Min Mat Min Exi Turns Passed 4715 | 47 1203 859 1703 801 102 Spaces Moved 3599 | 33 790 653 1313 717 93 Core 2 | 2 . . . . . Treads . | . . . . . . Legs . | . . . . . . Wheels 2015 | 31 790 653 36 414 91 Hover 1582 | . . . 1277 303 2 Flight . | . . . . . . Fastest Speed 50 | 50 80 90 66 66 80 Average Speed 81 | 96 89 90 70 81 82 Slowest Speed 152 | 100 100 105 132 152 152 Overloaded Moves . | . . . . . . Propulsion Burnouts . | . . . . . . Robots Hopped . | . . . . . . Cave-ins Triggered . | . . . . . . Exploration Rate (%) 70 | 3 92 96 94 98 38 Regions Visited 5 Branch Regions 3 Pre-discovered Areas 1 | . . 1 . . . Known Exits Taken 1 | . 1 . . . . Unknown Exits Taken 4 | 1 . 1 1 1 . Scrap Searched 4 | . . 1 . 3 . Spaces Dug . | . . . . . . Terrain Destroyed 332 | . 34 87 142 69 . Melee . | . . . . . . Projectile 3 | . . . 3 . . AOE 329 | . 34 87 139 69 . Terrain Rammed . | . . . . . . Walls Destroyed . | . . . . . . Machines Disabled . | . . . . . . Actions | -11 -10 -10 -9 -9 -9 --------- Run | Yrd Mat Min Mat Min Exi Total 4573 | 41 1034 807 1732 843 116 Wait 324 | . 46 67 164 39 8 Move 3594 | 32 789 652 1312 716 93 Hop . | . . . . . . Pick Up 40 | 2 14 7 13 2 2 Fast Attach 38 | 5 14 1 11 7 . Attach 14 | . 1 3 5 2 3 Detach 10 | . 5 . 2 3 . Swap 65 | . 8 12 30 14 1 Drop 65 | . 21 4 21 13 6 Fire 423 | 2 136 61 174 47 3 Melee . | . . . . . . Ram . | . . . . . . Kick . | . . . . . . Crush . | . . . . . . Escape Stasis . | . . . . . . Rewire . | . . . . . . Trap . | . . . . . . Miscellaneous . | . . . . . . Route ------- -11/Scrapyard -10/Materials (discovered 5 exits: *Mat x3 / *Min x2) -10/Mines (discovered 2 exits: *Mat x2) -9/Materials (discovered 4 exits: [*Mat x3] / [*Min]) -9/Mines (discovered 3 exits: [*Mat x2] / [*Exi]) -9/Exiles History --------- Turn | Location | Event 24 | -11/Scrapyard | Discovered new exit (range 15) 48 | -11/Scrapyard | Entered Materials 199 | -10/Materials | Discovered new exit (range 14) 312 | -10/Materials | Build established: Mutant 538 | -10/Materials | Discovered new exit (range 15) 858 | -10/Materials | Repaired Wheel 882 | -10/Materials | Discovered new exit (range 10) 1105 | -10/Materials | Discovered new exit (range 15) 1200 | -10/Materials | Discovered new exit (range 8) 1229 | -10/Materials | Central database locked down 1229 | -10/Materials | Identified exit to Mines 1251 | -10/Materials | Entered Mines 1255 | -10/Mines | Discovered new exit (range 11) 1268 | -10/Mines | Received a Rocket Launcher from a helpful Derelict 1279 | -10/Mines | Assembled infested the area 1390 | -10/Mines | Destroyed 7 combat bots 1546 | -10/Mines | Discovered new exit (range 11) 1629 | -10/Mines | Learned location of Zion (-6) 1707 | -10/Mines | Found the Drone Emporium 1710 | -10/Mines | Found Prototype Device 1716 | -10/Mines | Identified Sensor Drone Bay 1825 | -10/Mines | Core integrity fell below 50% 2007 | -10/Mines | Assisted by bots powering up and referring to "LRC-V3" 2110 | -10/Mines | Entered Materials 2110 | -9/Materials | Accompanied by 3 allies 2110 | -9/Materials | Evolved 2 slots: Power x1, Propulsion x1 2290 | -9/Materials | Discovered new exit (range 28) 2305 | -9/Materials | Discovered new exit (range 58) 2455 | -9/Materials | Build established: Scavenger-Mutant 2590 | -9/Materials | Discovered new exit (range 16) 2679 | -9/Materials | Repaired Cmb. Airjet 2730 | -9/Materials | Repaired Cmb. Airjet 3207 | -9/Materials | Discovered new exit (range 7) 3212 | -9/Materials | Destroyed 10 combat bots 3310 | -9/Materials | First assault squad dispatched 3727 | -9/Materials | Sterilization system engaged 3727 | -9/Materials | Non-combat units ordered to evacuate 3767 | -9/Materials | Destroyed 9 combat bots 3813 | -9/Materials | Entered Mines 3814 | -9/Mines | Met a Derelict testing a Signal Generator 3822 | -9/Mines | Found Signal Generator 3843 | -9/Mines | Deemed a non-threat by the Exiles lab entrance 3843 | -9/Mines | Discovered new exit (range 5) 3879 | -9/Mines | A weapon hastily lodged in a ceiling crevice suddenly fell to the ground 4233 | -9/Mines | Discovered new exit (range 4) 4282 | -9/Mines | Discovered new exit (range 10) 4354 | -9/Mines | Learned Materials machine intel 4614 | -9/Mines | Entered Exiles 4614 | -9/Exiles | Accompanied by 2 allies 4638 | -9/Exiles | Met 8R-AWN 4644 | -9/Exiles | Led the pair of lost Derelicts to a safe place 4660 | -9/Exiles | Met EX-HEX 4684 | -9/Exiles | Attacked by the Exiles 4698 | -9/Exiles | Core integrity fell below 50% 4704 | -9/Exiles | Destroyed EX-HEX 4711 | -9/Exiles | Core integrity fell below 20% 4716 | -9/Exiles | Destroyed by DAS Turret with DAS Cannon Last Messages --------------- 04696_ Adv. Beam Cannon destroyed. 04697_ Machine disabled. 04703_ Lgt. Ion Engine destroyed. 04704_ Wheel destroyed. 04704_ Destroyed Mak. Hover Unit. 04704_ EX Chip 2 melted. 04704_ EX-HEX destroyed. 04708_ Knocked back. 04709_ Wheel destroyed. 04711_ Sensor Drone released from Sensor Drone Bay. 04711_ as-38032 sneak attacks. 04711_ Sensor Drone destroyed. 04712_ Sensor Drone released from Sensor Drone Bay. 04712_ as-90667 sneak attacks. 04712_ Sensor Drone destroyed. 04713_ Sensor Drone released from Sensor Drone Bay. 04713_ as-28011 sneak attacks. 04714_ Sensor Drone released from Sensor Drone Bay. 04714_ Sensor Drone retrieved by Sensor Drone Bay. 04715_ as-28011 sneak attacks. Map ----- +----------------------------------------------------+ | ?????????????????????????????????????????????????? | | ??????????????????????????????????? ?????????? | | ??????????????????????????????????" ???????? | | ??????????????????????????????????" ????? | | ??????????????????????????????????" ????? | | ??????????????????????????????????" ????? | | ??????????????????????????????????" ?????? | | ??????????????????????????????????# ?????? | | ??????????????????????????????????# ??????? | | ??????????????????????????????????#" ???????? | | ??????????????????????????????????#" ???????? | | ???????????????????? ????????????#" ????????? | | ????????????????????" ??????????##" #????????? | | ????????????????????# ?????????##"" #????????? | | ??????????????????### ##??######" #????????? | | ??????????????#####X# #"###""""""" ##???????? | | ????????????? """""" " "" ! ##???#### | | ????????????? "" """ " #####""" | | ???????????? " " " " | | ???????????? " | | ???????????? z | | ??????????? % | | ???????????# % | | ????????????#" !!%%n % % | | ?????????????""" % !!!a%% a a | | ????????????#" @!aa! ;; ;; | | ????????????"" !!"!## ########""" | | ????????????""" """##?##??????##""" | | ????????????"" c"""##???????????#"""" | | ????????????"" ""#????????????#"" | | ????????????" ##????????????"""" | | ????????????"" ?????????????? | | ????????????? t ?????????????? | | ?????????????" ????????????? | | ?????????????""" ????????????? | | ??????????????? ????????????? | | ?????????????? ??????????????? | | ????????????????" ???????????????? " " " | | ?????????????????? ??????????????????"" "? | | ????????????????????? ??????????????????????????? | | ?????????????????????????????????????????????????? | | ?????????????????????????????????????????????????? | | ?????????????????????????????????????????????????? | | ?????????????????????????????????????????????????? | | ?????????????????????????????????????????????????? | | ?????????????????????????????????????????????????? | | ?????????????????????????????????????????????????? | | ?????????????????????????????????????????????????? | | ?????????????????????????????????????????????????? | | ?????????????????????????????????????????????????? | +----------------------------------------------------+ Best States ------------- Heat Dissipation 50 Energy Generation 19 Energy Capacity 430 Matter Stores 300 Matter Capacity 300 Sight Range 16 Terrain Scan Density 10 Evasion (%) 51 Offensive Hacking 10 Item Schematics ----------------- Adv. Beam Cannon | -9/Materials | Scanalyzed Cooling System | -9/Materials | Scanalyzed Cmb. Airjet | -9/Materials | Scanalyzed Cld. Ion Engine | -9/Materials | Scanalyzed Imp. Grenade Launcher | -9/Materials | Scanalyzed Robot Schematics ------------------ O-16 Technician | -9/Materials | Hacked Fabricated ------------ Nothing Alien Tech Used ----------------- None Achievements -------------- None Challenges ------------ None Game ------ Seed PowerArcJammer Manual? 0 Play Time 00:54:02 Cumulative 489.7 hours Start 2024.10.07 @ 19:55:18 End 2024.10.07 @ 20:46:49 Sessions 1 Manual Loads 0 Difficulty Rogue Special Mode None Game No. 195 Rogue 195 Adventurer 0 Explorer 0 Win Type - Total 4 Types 0/0/2/2/0/0/0/0/0 Lore% 48 Gallery% 76 Achievement% 66 Wizard Run 0 Options --------- Layout 0 ASCII 0 Keyboard 1 Movement Arrows Keybinds 0 Fullscreen 1 Font 12/Proggy Map View 83x54 Zoom Use 0% Tactical HUD 1 Map Filters NONE Filters NONE Steam 0 RUN: 47e76126-3930-4141-b788-b4f096a461fa